[Event "Late-Titled-Tuesday-Blitz-June-25-2024"]
[Site "Chess.com"]
[Date "2024.06.25"]
[Round "10"]
[White "FloMasterAAK"]
[Black "Zurability"]
[Result "0-1"]
[WhiteElo "2612"]
[BlackElo "2775"]
[TimeControl "180+1"]
[EndTime "15:56:08 PDT"]
[Termination "Zurability won by checkmate"]

1. Nf3 {[%clk 0:03:00.9]} 1... b6 {[%clk 0:02:56.1]} 2. c4 {[%clk 0:03:01]} 2...
Bb7 {[%clk 0:02:57]} 3. e3 {[%clk 0:03:01]} 3... f5 {[%clk 0:02:56.1]} 4. Nc3
{[%clk 0:02:59.3]} 4... Nf6 {[%clk 0:02:56.6]} 5. b3 {[%clk 0:02:58.7]} 5... g6
{[%clk 0:02:57.1]} 6. Bb2 {[%clk 0:02:59.2]} 6... Bg7 {[%clk 0:02:57.8]} 7. d4
{[%clk 0:02:59.9]} 7... O-O {[%clk 0:02:58.5]} 8. g3 {[%clk 0:02:53.5]} 8... e6
{[%clk 0:02:51.9]} 9. Bg2 {[%clk 0:02:53.7]} 9... Qe7 {[%clk 0:02:51.3]} 10. O-O
{[%clk 0:02:51.9]} 10... d6 {[%clk 0:02:51.9]} 11. a4 {[%clk 0:02:27.1]} 11...
a5 {[%clk 0:02:49.5]} 12. Rc1 {[%clk 0:02:18.1]} 12... Na6 {[%clk 0:02:47.9]}
13. Ba3 {[%clk 0:02:14.3]} 13... Nb4 {[%clk 0:02:47.8]} 14. c5 {[%clk 0:02:00]}
14... dxc5 {[%clk 0:02:46.8]} 15. dxc5 {[%clk 0:02:00.9]} 15... Rad8 {[%clk
0:02:47.2]} 16. Qe1 {[%clk 0:01:35.3]} 16... Nd3 {[%clk 0:02:40.4]} 17. Qd2
{[%clk 0:01:35.7]} 17... Nxc1 {[%clk 0:02:32.8]} 18. Qxc1 {[%clk 0:01:36.6]}
18... bxc5 {[%clk 0:02:32.5]} 19. Nb5 {[%clk 0:01:17.9]} 19... Ne4 {[%clk
0:02:29.2]} 20. Nbd4 {[%clk 0:01:06.6]} 20... Rfe8 {[%clk 0:02:08.1]} 21. h4
{[%clk 0:00:50.8]} 21... Qd6 {[%clk 0:01:48.7]} 22. Nb5 {[%clk 0:00:28.5]} 22...
Qb6 {[%clk 0:01:41.1]} 23. Ng5 {[%clk 0:00:26.2]} 23... Bf8 {[%clk 0:00:36.5]}
24. Nxe4 {[%clk 0:00:24.9]} 24... Bxe4 {[%clk 0:00:36.6]} 25. Bxe4 {[%clk
0:00:22.6]} 25... fxe4 {[%clk 0:00:37.5]} 26. Qc4 {[%clk 0:00:22.9]} 26... c6
{[%clk 0:00:26.1]} 27. Nc3 {[%clk 0:00:23]} 27... Rd3 {[%clk 0:00:26.7]} 28. Rb1
{[%clk 0:00:18.1]} 28... Rb8 {[%clk 0:00:25.2]} 29. Qxe6+ {[%clk 0:00:16.7]}
29... Kh8 {[%clk 0:00:25]} 30. Nxe4 {[%clk 0:00:15.2]} 30... Rxb3 {[%clk
0:00:22.9]} 31. Rd1 {[%clk 0:00:03.6]} 31... Rb1 {[%clk 0:00:11.2]} 32. Rxb1
{[%clk 0:00:02.5]} 32... Qxb1+ {[%clk 0:00:12.1]} 33. Kg2 {[%clk 0:00:03.3]}
33... Qb3 {[%clk 0:00:11.5]} 34. Qxb3 {[%clk 0:00:02.4]} 34... Rxb3 {[%clk
0:00:11.2]} 35. Bxc5 {[%clk 0:00:03.1]} 35... Bxc5 {[%clk 0:00:10.9]} 36. Nxc5
{[%clk 0:00:04]} 36... Rb4 {[%clk 0:00:08.2]} 37. e4 {[%clk 0:00:03.1]} 37...
Rc4 {[%clk 0:00:08.1]} 38. Nd7 {[%clk 0:00:02.2]} 38... Rxa4 {[%clk 0:00:08.6]}
39. e5 {[%clk 0:00:02.8]} 39... Re4 {[%clk 0:00:03.4]} 40. f3 {[%clk 0:00:03.5]}
40... Re2+ {[%clk 0:00:03.3]} 41. Kf1 {[%clk 0:00:03.6]} 41... Rd2 {[%clk
0:00:03.4]} 42. e6 {[%clk 0:00:04.1]} 42... Rd6 {[%clk 0:00:03.8]} 43. e7 {[%clk
0:00:04.2]} 43... Re6 {[%clk 0:00:04.4]} 44. Nb8 {[%clk 0:00:04.1]} 44... a4
{[%clk 0:00:03.3]} 45. Nxc6 {[%clk 0:00:05]} 45... a3 {[%clk 0:00:03.7]} 46. Nb4
{[%clk 0:00:05.1]} 46... Rxe7 {[%clk 0:00:03.9]} 47. Kf2 {[%clk 0:00:06]} 47...
Rb7 {[%clk 0:00:04.5]} 48. Nd3 {[%clk 0:00:06]} 48... a2 {[%clk 0:00:04.6]} 49.
Ke3 {[%clk 0:00:06.9]} 49... a1=Q {[%clk 0:00:05.1]} 50. Nc5 {[%clk 0:00:07.8]}
50... Qc3+ {[%clk 0:00:05.5]} 51. Nd3 {[%clk 0:00:07.4]} 51... Re7+ {[%clk
0:00:05.6]} 52. Kf4 {[%clk 0:00:08.3]} 52... Qxd3 {[%clk 0:00:06]} 53. Kg5
{[%clk 0:00:08.9]} 53... Qf5+ {[%clk 0:00:06.3]} 54. Kh6 {[%clk 0:00:09.1]}
54... Qh5# {[%clk 0:00:07.1]} 0-1

[Event "Late-Titled-Tuesday-Blitz-June-25-2024"]
[Site "Chess.com"]
[Date "2024.06.25"]
[Round "10"]
[White "Jospem"]
[Black "MagnusCarlsen"]
[Result "0-1"]
[WhiteElo "3064"]
[BlackElo "3179"]
[TimeControl "180+1"]
[EndTime "15:56:12 PDT"]
[Termination "MagnusCarlsen won by resignation"]

1. e4 {[%clk 0:03:00.9]} 1... c5 {[%clk 0:02:59.4]} 2. Nf3 {[%clk 0:03:01.2]}
2... e6 {[%clk 0:02:59.6]} 3. c3 {[%clk 0:03:01.3]} 3... d5 {[%clk 0:02:58.9]}
4. e5 {[%clk 0:03:01.4]} 4... Nc6 {[%clk 0:02:57.7]} 5. g3 {[%clk 0:02:53.4]}
5... Nge7 {[%clk 0:02:52.9]} 6. Bg2 {[%clk 0:02:48.1]} 6... Nf5 {[%clk
0:02:42.6]} 7. d3 {[%clk 0:02:46.8]} 7... Be7 {[%clk 0:02:41.8]} 8. h4 {[%clk
0:02:46.1]} 8... h5 {[%clk 0:02:37.3]} 9. Bf4 {[%clk 0:02:44.8]} 9... b6 {[%clk
0:02:36.7]} 10. O-O {[%clk 0:02:44.4]} 10... Ba6 {[%clk 0:02:32.1]} 11. Re1
{[%clk 0:02:34.2]} 11... g6 {[%clk 0:02:30.8]} 12. Bg5 {[%clk 0:02:23.9]} 12...
Bxg5 {[%clk 0:02:24.7]} 13. Nxg5 {[%clk 0:02:24.8]} 13... Qc7 {[%clk 0:02:24.4]}
14. Na3 {[%clk 0:02:21.4]} 14... Kf8 {[%clk 0:02:10.3]} 15. Qa4 {[%clk
0:02:18.1]} 15... Bxd3 {[%clk 0:02:06.7]} 16. Qf4 {[%clk 0:02:14.9]} 16... a6
{[%clk 0:01:51.7]} 17. c4 {[%clk 0:01:46.4]} 17... dxc4 {[%clk 0:01:51.3]} 18.
Nxc4 {[%clk 0:01:47.3]} 18... Bxc4 {[%clk 0:01:50.1]} 19. Qxc4 {[%clk 0:01:48]}
19... Ra7 {[%clk 0:01:39.9]} 20. a3 {[%clk 0:01:20.8]} 20... Ncd4 {[%clk
0:01:39.2]} 21. Rac1 {[%clk 0:01:14.4]} 21... Kg7 {[%clk 0:01:38.1]} 22. b4
{[%clk 0:01:14.7]} 22... Rc8 {[%clk 0:01:36]} 23. Ne4 {[%clk 0:00:46.9]} 23...
cxb4 {[%clk 0:01:27.2]} 24. Qxb4 {[%clk 0:00:30.8]} 24... Ne2+ {[%clk 0:01:26]}
25. Rxe2 {[%clk 0:00:31.4]} 25... Qxc1+ {[%clk 0:01:25.8]} 26. Re1 {[%clk
0:00:32.3]} 26... Qc4 {[%clk 0:01:17.5]} 27. Qd2 {[%clk 0:00:32.4]} 27... Qd4
{[%clk 0:01:12.8]} 28. Qf4 {[%clk 0:00:32.8]} 28... Rd7 {[%clk 0:00:47.2]} 29.
Bf3 {[%clk 0:00:33.2]} 29... Rc2 {[%clk 0:00:32.5]} 30. Rd1 {[%clk 0:00:31.4]}
30... Qa4 {[%clk 0:00:24.4]} 31. Rf1 {[%clk 0:00:24.7]} 31... Rc4 {[%clk
0:00:23.3]} 32. Re1 {[%clk 0:00:17.6]} 32... Qxa3 {[%clk 0:00:21.4]} 33. Kg2
{[%clk 0:00:16.1]} 33... Qb2 {[%clk 0:00:17.1]} 34. Bxh5 {[%clk 0:00:12.7]}
34... gxh5 {[%clk 0:00:13.2]} 35. Qg5+ {[%clk 0:00:13.2]} 35... Kf8 {[%clk
0:00:13.5]} 36. Nf6 {[%clk 0:00:13.6]} 36... Rd8 {[%clk 0:00:08]} 37. Nh7+
{[%clk 0:00:14]} 37... Ke8 {[%clk 0:00:08.1]} 38. Nf6+ {[%clk 0:00:14.9]} 38...
Ke7 {[%clk 0:00:08.6]} 39. Rf1 {[%clk 0:00:02.8]} 39... Qd2 {[%clk 0:00:07.7]}
40. Ne4+ {[%clk 0:00:02.8]} 40... Qxg5 {[%clk 0:00:07.1]} 41. Nxg5 {[%clk
0:00:03.7]} 41... Rd2 {[%clk 0:00:06.5]} 42. Re1 {[%clk 0:00:03.9]} 42... Rcc2
{[%clk 0:00:06.4]} 43. Ne4 {[%clk 0:00:04.8]} 43... Re2 {[%clk 0:00:07]} 44.
Rxe2 {[%clk 0:00:05.7]} 44... Rxe2 {[%clk 0:00:07.3]} 45. Kf3 {[%clk 0:00:06.6]}
45... Nd4+ {[%clk 0:00:07.4]} 46. Kf4 {[%clk 0:00:07]} 46... a5 {[%clk 0:00:08]}
47. g4 {[%clk 0:00:07.9]} 47... a4 {[%clk 0:00:07.6]} 48. gxh5 {[%clk
0:00:08.8]} 48... Rxe4+ {[%clk 0:00:07.1]} 49. Kxe4 {[%clk 0:00:09.2]} 49... a3
{[%clk 0:00:06.9]} 50. h6 {[%clk 0:00:10.1]} 50... Kf8 {[%clk 0:00:07.2]} 51. h7
{[%clk 0:00:10.9]} 51... Kg7 {[%clk 0:00:07.4]} 52. Kxd4 {[%clk 0:00:11.8]}
52... a2 {[%clk 0:00:07.4]} 53. Kc3 {[%clk 0:00:12.7]} 0-1

[Event "Late-Titled-Tuesday-Blitz-June-25-2024"]
[Site "Chess.com"]
[Date "2024.06.25"]
[Round "10"]
[White "ManMish2"]
[Black "Rodalquilar"]
[Result "0-1"]
[WhiteElo "2650"]
[BlackElo "2838"]
[TimeControl "180+1"]
[EndTime "15:56:12 PDT"]
[Termination "Rodalquilar won on time"]

1. e4 {[%clk 0:03:00.9]} 1... d5 {[%clk 0:03:00.2]} 2. exd5 {[%clk 0:03:00.8]}
2... Qxd5 {[%clk 0:03:01.1]} 3. Nc3 {[%clk 0:03:00.6]} 3... Qa5 {[%clk
0:03:01.3]} 4. g3 {[%clk 0:02:59.8]} 4... Nf6 {[%clk 0:03:00.4]} 5. Bg2 {[%clk
0:02:59.6]} 5... e5 {[%clk 0:03:00.8]} 6. Nge2 {[%clk 0:02:59.6]} 6... Bd6
{[%clk 0:02:58.2]} 7. O-O {[%clk 0:03:00]} 7... O-O {[%clk 0:02:58.5]} 8. d4
{[%clk 0:02:59.8]} 8... Nc6 {[%clk 0:02:56.4]} 9. dxe5 {[%clk 0:02:57]} 9...
Nxe5 {[%clk 0:02:52.2]} 10. Bf4 {[%clk 0:02:52.2]} 10... Rb8 {[%clk 0:02:43.4]}
11. Nd4 {[%clk 0:02:47.2]} 11... Bg4 {[%clk 0:02:40.9]} 12. Qc1 {[%clk 0:02:36]}
12... Qb6 {[%clk 0:02:31.1]} 13. Ndb5 {[%clk 0:02:21.5]} 13... a6 {[%clk
0:01:14.3]} 14. Nxd6 {[%clk 0:02:07]} 14... cxd6 {[%clk 0:01:15.2]} 15. h3
{[%clk 0:01:46.8]} 15... Bh5 {[%clk 0:00:46.7]} 16. Bg5 {[%clk 0:01:17.4]} 16...
Nfd7 {[%clk 0:00:31.5]} 17. Nd5 {[%clk 0:01:16.6]} 17... Qc5 {[%clk 0:00:30.6]}
18. Be3 {[%clk 0:00:53.4]} 18... Qa5 {[%clk 0:00:30.7]} 19. Qd2 {[%clk
0:00:33.6]} 19... Qxd2 {[%clk 0:00:25.6]} 20. Bxd2 {[%clk 0:00:34.5]} 20... Bf3
{[%clk 0:00:26.3]} 21. Ne7+ {[%clk 0:00:30.5]} 21... Kh8 {[%clk 0:00:26.3]} 22.
Bc3 {[%clk 0:00:30.3]} 22... Rfe8 {[%clk 0:00:25.8]} 23. Nf5 {[%clk 0:00:29.4]}
23... d5 {[%clk 0:00:20.7]} 24. Bxf3 {[%clk 0:00:28.6]} 24... Nxf3+ {[%clk
0:00:20.5]} 25. Kg2 {[%clk 0:00:29.2]} 25... Nfe5 {[%clk 0:00:19.8]} 26. f4
{[%clk 0:00:26.6]} 26... Nc4 {[%clk 0:00:17.1]} 27. Nxg7 {[%clk 0:00:19.5]}
27... Re2+ {[%clk 0:00:13.7]} 28. Rf2 {[%clk 0:00:14.8]} 28... Rxc2 {[%clk
0:00:14.1]} 29. Rxc2 {[%clk 0:00:13.6]} 29... Ne3+ {[%clk 0:00:14.6]} 30. Kf3
{[%clk 0:00:13.9]} 30... Nxc2 {[%clk 0:00:15.5]} 31. Rc1 {[%clk 0:00:10.2]}
31... d4 {[%clk 0:00:16.1]} 32. Rxc2 {[%clk 0:00:09.7]} 32... dxc3 {[%clk
0:00:16.6]} 33. Nf5 {[%clk 0:00:10.2]} 33... cxb2 {[%clk 0:00:17.2]} 34. Rxb2
{[%clk 0:00:11]} 34... b5 {[%clk 0:00:16]} 35. Rc2 {[%clk 0:00:09.6]} 35... Nb6
{[%clk 0:00:06.9]} 36. Rc7 {[%clk 0:00:09.3]} 36... f6 {[%clk 0:00:07.2]} 37. g4
{[%clk 0:00:08.8]} 37... b4 {[%clk 0:00:06.6]} 38. g5 {[%clk 0:00:08.1]} 38...
fxg5 {[%clk 0:00:06.5]} 39. fxg5 {[%clk 0:00:09]} 39... a5 {[%clk 0:00:05.2]}
40. h4 {[%clk 0:00:08.9]} 40... Rf8 {[%clk 0:00:03.6]} 41. Ke4 {[%clk
0:00:07.4]} 41... Re8+ {[%clk 0:00:03.5]} 42. Kf3 {[%clk 0:00:07.7]} 42... Rf8
{[%clk 0:00:03.6]} 43. Kg4 {[%clk 0:00:07.8]} 43... Nd5 {[%clk 0:00:03.8]} 44.
Rd7 {[%clk 0:00:06.2]} 44... Nc3 {[%clk 0:00:04]} 45. h5 {[%clk 0:00:06.1]}
45... Ne4 {[%clk 0:00:01.9]} 46. Re7 {[%clk 0:00:04.7]} 46... Nf2+ {[%clk
0:00:01.9]} 47. Kf4 {[%clk 0:00:04.8]} 47... Nh3+ {[%clk 0:00:02.2]} 48. Kg4
{[%clk 0:00:04.1]} 48... Nf2+ {[%clk 0:00:02.1]} 49. Kf4 {[%clk 0:00:02.7]}
49... Rg8 {[%clk 0:00:02.8]} 0-1

[Event "Late-Titled-Tuesday-Blitz-June-25-2024"]
[Site "Chess.com"]
[Date "2024.06.25"]
[Round "10"]
[White "GMsKoRPioN"]
[Black "KorolDimitriy75"]
[Result "0-1"]
[WhiteElo "2584"]
[BlackElo "2427"]
[TimeControl "180+1"]
[EndTime "15:56:13 PDT"]
[Termination "KorolDimitriy75 won by checkmate"]

1. d4 {[%clk 0:03:00.9]} 1... Nf6 {[%clk 0:02:59.6]} 2. c4 {[%clk 0:03:00.9]}
2... c5 {[%clk 0:02:59.8]} 3. d5 {[%clk 0:03:00.7]} 3... b5 {[%clk 0:03:00.1]}
4. cxb5 {[%clk 0:03:01.5]} 4... a6 {[%clk 0:03:00.5]} 5. b6 {[%clk 0:03:01.8]}
5... d6 {[%clk 0:03:00.2]} 6. Nc3 {[%clk 0:03:02.1]} 6... Nbd7 {[%clk
0:03:00.8]} 7. e4 {[%clk 0:03:02.4]} 7... g6 {[%clk 0:03:01]} 8. Be2 {[%clk
0:03:02.9]} 8... Bg7 {[%clk 0:03:01.4]} 9. Nf3 {[%clk 0:03:03.8]} 9... O-O
{[%clk 0:03:01.7]} 10. Nd2 {[%clk 0:03:04.4]} 10... Nxb6 {[%clk 0:03:01.9]} 11.
a4 {[%clk 0:03:04.2]} 11... a5 {[%clk 0:03:01.8]} 12. O-O {[%clk 0:03:03.3]}
12... e6 {[%clk 0:03:02]} 13. Nc4 {[%clk 0:03:01.9]} 13... exd5 {[%clk
0:03:00.5]} 14. exd5 {[%clk 0:03:00.6]} 14... Bb7 {[%clk 0:02:54.1]} 15. Nxb6
{[%clk 0:02:56.4]} 15... Qxb6 {[%clk 0:02:55]} 16. Bf3 {[%clk 0:02:49.8]} 16...
Rfe8 {[%clk 0:02:52.4]} 17. Ra3 {[%clk 0:02:48.6]} 17... Ba6 {[%clk 0:02:48.6]}
18. Rb3 {[%clk 0:02:39.3]} 18... Qc7 {[%clk 0:02:17.1]} 19. Nb5 {[%clk
0:02:38.2]} 19... Bxb5 {[%clk 0:02:07.6]} 20. Rxb5 {[%clk 0:02:37.6]} 20... Rab8
{[%clk 0:02:03.8]} 21. Re1 {[%clk 0:02:10.1]} 21... Rxb5 {[%clk 0:00:52.1]} 22.
Rxe8+ {[%clk 0:02:06.8]} 22... Nxe8 {[%clk 0:00:53]} 23. axb5 {[%clk 0:02:07.6]}
23... Qb6 {[%clk 0:00:48.8]} 24. Qe2 {[%clk 0:01:51.6]} 24... Nc7 {[%clk
0:00:45.1]} 25. Qe7 {[%clk 0:01:51.1]} 25... Bf8 {[%clk 0:00:29.8]} 26. Qd8
{[%clk 0:01:50.1]} 26... Nxd5 {[%clk 0:00:29.6]} 27. Qa8 {[%clk 0:01:43.4]}
27... Nc7 {[%clk 0:00:20.5]} 28. Qd8 {[%clk 0:01:40.5]} 28... Nd5 {[%clk
0:00:19.6]} 29. Qa8 {[%clk 0:01:38.2]} 29... Nc7 {[%clk 0:00:19.7]} 30. Qc8
{[%clk 0:01:38.5]} 30... Ne6 {[%clk 0:00:12.6]} 31. Bd5 {[%clk 0:01:28.8]} 31...
Qxb5 {[%clk 0:00:09.6]} 32. Bxe6 {[%clk 0:01:28.5]} 32... Qe2 {[%clk 0:00:09.7]}
33. g3 {[%clk 0:00:20.2]} 33... Qxe6 {[%clk 0:00:08.6]} 34. Qxe6 {[%clk
0:00:18]} 34... fxe6 {[%clk 0:00:09.5]} 35. Bd2 {[%clk 0:00:17.2]} 35... a4
{[%clk 0:00:09.4]} 36. Kf1 {[%clk 0:00:17.3]} 36... Bg7 {[%clk 0:00:09.6]} 37.
Ke2 {[%clk 0:00:18.2]} 37... Bxb2 {[%clk 0:00:09.2]} 38. Kd3 {[%clk 0:00:19.1]}
38... a3 {[%clk 0:00:08.9]} 39. Kc2 {[%clk 0:00:20]} 39... d5 {[%clk 0:00:08.8]}
40. Kb3 {[%clk 0:00:19.7]} 40... c4+ {[%clk 0:00:08.9]} 41. Kc2 {[%clk
0:00:18.4]} 41... d4 {[%clk 0:00:08.1]} 42. Bb4 {[%clk 0:00:17.9]} 42... d3+
{[%clk 0:00:08.4]} 43. Kb1 {[%clk 0:00:17.4]} 43... c3 {[%clk 0:00:08.8]} 44.
Bxc3 {[%clk 0:00:16.1]} 44... Bxc3 {[%clk 0:00:08.9]} 45. f4 {[%clk 0:00:16.7]}
45... d2 {[%clk 0:00:08.6]} 46. Kc2 {[%clk 0:00:17.2]} 46... a2 {[%clk
0:00:09.1]} 47. f5 {[%clk 0:00:17.1]} 47... d1=Q+ {[%clk 0:00:08.8]} 48. Kxd1
{[%clk 0:00:17.2]} 48... a1=Q+ {[%clk 0:00:09.2]} 49. Ke2 {[%clk 0:00:18.1]}
49... Qb2+ {[%clk 0:00:09.4]} 50. Kf3 {[%clk 0:00:19]} 50... exf5 {[%clk
0:00:09.6]} 51. h4 {[%clk 0:00:19.9]} 51... Be5 {[%clk 0:00:09.2]} 52. h5 {[%clk
0:00:20.3]} 52... Qc3+ {[%clk 0:00:09.2]} 53. Ke2 {[%clk 0:00:20.6]} 53... Qxg3
{[%clk 0:00:08.7]} 54. hxg6 {[%clk 0:00:21.5]} 54... hxg6 {[%clk 0:00:08.6]} 55.
Kf1 {[%clk 0:00:22.4]} 55... Qh2 {[%clk 0:00:07.8]} 56. Ke1 {[%clk 0:00:22.5]}
56... Kf7 {[%clk 0:00:07.7]} 57. Kd1 {[%clk 0:00:23.4]} 57... Ke6 {[%clk
0:00:08.1]} 58. Ke1 {[%clk 0:00:23.9]} 58... Kd5 {[%clk 0:00:08.4]} 59. Kf1
{[%clk 0:00:24.8]} 59... Ke4 {[%clk 0:00:08.2]} 60. Ke1 {[%clk 0:00:25.7]} 60...
Ke3 {[%clk 0:00:08.2]} 61. Kd1 {[%clk 0:00:26.6]} 61... Qd2# {[%clk 0:00:08.2]}
0-1

[Event "Late-Titled-Tuesday-Blitz-June-25-2024"]
[Site "Chess.com"]
[Date "2024.06.25"]
[Round "10"]
[White "Jagerrmeisterr"]
[Black "Connectedcloud"]
[Result "0-1"]
[WhiteElo "2660"]
[BlackElo "2379"]
[TimeControl "180+1"]
[EndTime "15:56:17 PDT"]
[Termination "Connectedcloud won by resignation"]

1. e4 {[%clk 0:02:53.5]} 1... e5 {[%clk 0:02:59.4]} 2. Nc3 {[%clk 0:02:51.8]}
2... Nc6 {[%clk 0:02:57.1]} 3. g3 {[%clk 0:02:51.1]} 3... Nf6 {[%clk 0:02:53.5]}
4. Bg2 {[%clk 0:02:51.3]} 4... Bc5 {[%clk 0:02:52.4]} 5. d3 {[%clk 0:02:51.8]}
5... d6 {[%clk 0:02:51.7]} 6. h3 {[%clk 0:02:51.9]} 6... h6 {[%clk 0:02:51.8]}
7. Nge2 {[%clk 0:02:51.1]} 7... O-O {[%clk 0:02:47.9]} 8. Na4 {[%clk 0:02:51]}
8... Bb6 {[%clk 0:02:44.4]} 9. Nxb6 {[%clk 0:02:50.4]} 9... axb6 {[%clk
0:02:45.3]} 10. c4 {[%clk 0:02:51.1]} 10... Ne7 {[%clk 0:02:38.4]} 11. O-O
{[%clk 0:02:36.4]} 11... Ng6 {[%clk 0:02:37.2]} 12. f4 {[%clk 0:02:36.8]} 12...
exf4 {[%clk 0:02:36.9]} 13. Nxf4 {[%clk 0:02:37.3]} 13... Nxf4 {[%clk
0:02:36.1]} 14. Bxf4 {[%clk 0:02:37.2]} 14... Be6 {[%clk 0:02:34.1]} 15. b3
{[%clk 0:02:36.3]} 15... Qd7 {[%clk 0:02:33.2]} 16. Kh2 {[%clk 0:02:36.5]} 16...
c6 {[%clk 0:02:30.1]} 17. Bxh6 {[%clk 0:02:36.3]} 17... Ng4+ {[%clk 0:02:25.9]}
18. hxg4 {[%clk 0:02:34.1]} 18... gxh6 {[%clk 0:02:26.4]} 19. Qd2 {[%clk
0:02:27.6]} 19... Kg7 {[%clk 0:02:23.8]} 20. Rf4 {[%clk 0:02:13.4]} 20... Qe7
{[%clk 0:02:14.4]} 21. Qc3+ {[%clk 0:02:03.6]} 21... Kh7 {[%clk 0:02:04.2]} 22.
e5 {[%clk 0:01:52.5]} 22... d5 {[%clk 0:02:00.1]} 23. cxd5 {[%clk 0:01:39.6]}
23... cxd5 {[%clk 0:02:00]} 24. Rf6 {[%clk 0:01:36]} 24... Rg8 {[%clk
0:01:57.5]} 25. Qd2 {[%clk 0:01:11.1]} 25... Rg5 {[%clk 0:01:54.2]} 26. Raf1
{[%clk 0:01:01.7]} 26... Rag8 {[%clk 0:01:51.1]} 27. d4 {[%clk 0:00:56]} 27...
R8g6 {[%clk 0:01:47.9]} 28. Bh3 {[%clk 0:00:49.7]} 28... Rg7 {[%clk 0:01:33]}
29. Qd3+ {[%clk 0:00:48]} 29... R7g6 {[%clk 0:01:31.5]} 30. R1f2 {[%clk
0:00:31.4]} 30... Kg7 {[%clk 0:01:27.2]} 31. Qf3 {[%clk 0:00:29.5]} 31... Kh7
{[%clk 0:01:14.9]} 32. Qd3 {[%clk 0:00:29.4]} 32... Kg7 {[%clk 0:01:14.8]} 33.
a3 {[%clk 0:00:27.9]} 33... Qxa3 {[%clk 0:01:06.9]} 34. Qb5 {[%clk 0:00:28]}
34... Qe7 {[%clk 0:00:58.9]} 35. Qxb6 {[%clk 0:00:27.9]} 35... h5 {[%clk
0:00:45.6]} 36. gxh5 {[%clk 0:00:20.4]} 36... Rxh5 {[%clk 0:00:45.3]} 37. g4
{[%clk 0:00:17.5]} 37... Bxg4 {[%clk 0:00:13.9]} 38. Rxf7+ {[%clk 0:00:14]}
38... Qxf7 {[%clk 0:00:14.1]} 39. Rxf7+ {[%clk 0:00:14.7]} 39... Kxf7 {[%clk
0:00:15]} 40. Qxb7+ {[%clk 0:00:15.3]} 40... Kg8 {[%clk 0:00:15.5]} 41. Qxd5+
{[%clk 0:00:10.8]} 41... Kg7 {[%clk 0:00:16]} 42. Qb7+ {[%clk 0:00:10.8]} 42...
Kh6 {[%clk 0:00:16.5]} 43. Kg3 {[%clk 0:00:11.5]} 43... Bc8+ {[%clk 0:00:14.5]}
44. Kf4 {[%clk 0:00:09.5]} 44... Bxb7 {[%clk 0:00:14.9]} 45. Bf5 {[%clk
0:00:09.8]} 45... Rh4+ {[%clk 0:00:14.5]} 46. Ke3 {[%clk 0:00:10.2]} 46... Rg3+
{[%clk 0:00:15]} 47. Ke2 {[%clk 0:00:10.9]} 47... Rxd4 {[%clk 0:00:15.5]} 48. e6
{[%clk 0:00:10.7]} 48... Rd6 {[%clk 0:00:15.5]} 49. b4 {[%clk 0:00:10.4]} 49...
Rg8 {[%clk 0:00:15.2]} 50. Ke3 {[%clk 0:00:10.7]} 50... Re8 {[%clk 0:00:15.8]}
51. Kf4 {[%clk 0:00:11.3]} 51... Rexe6 {[%clk 0:00:16.5]} 52. b5 {[%clk
0:00:12.2]} 52... Rf6 {[%clk 0:00:16.6]} 53. Ke5 {[%clk 0:00:12.6]} 53... Rxf5+
{[%clk 0:00:16.7]} 54. Kxd6 {[%clk 0:00:13.3]} 54... Rxb5 {[%clk 0:00:17.3]} 55.
Ke7 {[%clk 0:00:13.5]} 55... Rb1 {[%clk 0:00:18]} 56. Kf6 {[%clk 0:00:14.4]}
56... Rf1+ {[%clk 0:00:17.2]} 57. Ke5 {[%clk 0:00:15.3]} 57... Kg7 {[%clk
0:00:17.5]} 58. Kd4 {[%clk 0:00:16.2]} 58... Be4 {[%clk 0:00:17.8]} 59. Ke5
{[%clk 0:00:17.1]} 59... Kf7 {[%clk 0:00:18.1]} 60. Kd4 {[%clk 0:00:18]} 60...
Rd1+ {[%clk 0:00:18.5]} 61. Ke3 {[%clk 0:00:18.9]} 61... Kf6 {[%clk 0:00:18.9]}
62. Kf4 {[%clk 0:00:19.8]} 62... Rf1+ {[%clk 0:00:18.6]} 63. Ke3 {[%clk
0:00:20.7]} 63... Ke5 {[%clk 0:00:18.5]} 64. Kd2 {[%clk 0:00:21.4]} 64... Rf2+
{[%clk 0:00:18.4]} 65. Ke3 {[%clk 0:00:21.8]} 65... Rf3+ {[%clk 0:00:17.5]} 66.
Ke2 {[%clk 0:00:22.2]} 66... Kd4 {[%clk 0:00:17.6]} 67. Kd2 {[%clk 0:00:23.1]}
67... Rf2+ {[%clk 0:00:17.9]} 68. Ke1 {[%clk 0:00:24]} 68... Ke3 {[%clk
0:00:18.1]} 69. Kd1 {[%clk 0:00:24.4]} 69... Kd3 {[%clk 0:00:17.1]} 70. Ke1
{[%clk 0:00:24.2]} 70... Rf3 {[%clk 0:00:17.1]} 0-1